Cogmind - Beta 10.2 --- EXPLORER MODE // 2020.12.09 @ 10:45:08 // Winter2019/RPGLIKE Player: Sartorius Result: Self-destructed Performance ------------- Evolutions (1) 500 Regions Visited (2) 400 Robots Destroyed (5) 25 Value Destroyed (22) 22 Prototype IDs (2) 40 Alien Tech Used (0) 0 Bonus (0) 0 TOTAL SCORE: 987 Bonus ------- None Cogmind --------- Core Integrity 750/750 Matter 325/350 Energy 359/375 System Corruption 0% Temperature Cool (0) Movement Treading (145) Location -9/Materials Parts ------- > --- POWER (2) -------- Ion Engine Light Ion Engine > --- PROPULSION (2) --- Advanced Treads Advanced Treads > --- UTILITY (3) ------ Signal Interpreter Light Armor Plating > --- WEAPON (3) ------- Medium Laser Assault Rifle Flak Cannon > --- INVENTORY (3) ---- (None) Peak State ------------ > --- POWER ------------ Ion Engine Light Ion Engine > --- PROPULSION ------- Advanced Treads Advanced Treads > --- UTILITY ---------- Signal Interpreter Light Armor Plating > --- WEAPON ----------- Medium Laser Assault Rifle Flak Cannon > --- INVENTORY -------- (None) [Rating: 15] Favorites ----------- Power Light Ion Engine Engine Light Ion Engine Propulsion Compact Wheel Treads Advanced Treads Wheel Compact Wheel Utility Light Armor Plating Processor Signal Interpreter Protection Light Armor Plating Weapon Assault Rifle Energy Gun Medium Laser Ballistic Gun Assault Rifle Ballistic Cannon Flak Cannon Build | -11 -10 -9 ------- Run | Scr Mat Mat Slots Evolved 6 | . 4 2 Power 1 | . 1 . Propulsion 1 | . 1 . Utility 2 | . 1 1 Weapon 2 | . 1 1 Parts Attached 20 | 4 12 4 Power 5 | 1 4 . Engine 5 | 1 4 . Core . | . . . Reactor . | . . . Propulsion 8 | 1 5 2 Treads 3 | 1 . 2 Leg . | . . . Wheel 5 | . 5 . Hover . | . . . Flight . | . . . Utility 3 | 1 2 . Device . | . . . Storage . | . . . Processor 1 | . 1 . Hackware . | . . . Protection 2 | 1 1 . Artifact . | . . . Weapon 4 | 1 1 2 Energy Gun 1 | . 1 . Energy Cannon . | . . . Ballistic Gun 2 | 1 . 1 Ballistic Cannon 1 | . . 1 Launcher . | . . . Special Weapon . | . . . Impact Weapon . | . . . Slashing Weapon . | . . . Piercing Weapon . | . . . Special Melee Weapon . | . . . Unidentified Prototypes . | . . . Parts Lost . | . . . Power . | . . . Propulsion . | . . . Utility . | . . . Weapon . | . . . Highest Loss Streak . | . . . Average Slot Usage (%) 92 | . 90 97 Engine 22 | . 21 23 Treads 5 | . 2 18 Wheel 18 | . 21 5 Processor 8 | . 8 11 Protection 12 | . 13 11 Energy Gun 9 | . 8 11 Ballistic Gun 11 | . 13 6 Ballistic Cannon 1 | . . 8 Naked Turns . | . . . Heaviest Build 21 | 8 15 21 Greatest Support 49 | 20 37 49 Greatest Overweight (x) 2 | . 2 . Average Overweight (x) . | . . . Largest Inventory Capacity 3 | . 2 3 Average Capacity 1 | . 1 2 Most Carried 2 | . 2 2 Average Carried . | . . . Final Capacity 3 | . 2 3 Final Carried 2 | . 2 . Class Distribution -------------------- 94% | Hacker-Mutant 5% | Hacker-Gunner Dominant Class ---------------- Hacker-Mutant | -10/Materials Hacker-Mutant | -9/Materials Resources | -11 -10 -9 ----------- Run | Scr Mat Mat Matter Collected 547 | 174 298 75 Remotely . | . . . Salvage Created 184 | 24 . 160 Parts 6 | 3 . 3 Haulers Intercepted 1 | . . 1 Recyclers Shooed 2 | . . 2 Parts Field Recycled . | . . . Retrieved Matter . | . . . Parts Self-Destructed . | . . . Prevented . | . . . Kills | -11 -10 -9 ------- Run | Scr Mat Mat Combat Hostiles Destroyed . | . . . Classes Destroyed 4 | 1 . 3 Worker 1 | . . 1 Tunneler 1 | 1 . . Hauler 1 | . . 1 Recycler 2 | . . 2 Best Kill Streak 2 | 1 . 2 Combat Bots Only . | . . . Max Kills in Single Turn 1 | 1 . 1 Gunslinging . | . . . Exploded . | . . . Melee . | . . . Uniques/NPCs Destroyed . | . . . Combat | -11 -10 -9 -------- Run | Scr Mat Mat Damage Taken . | . . . Core . | . . . Absorbed by Shields . | . . . Core Remaining (%) 100 | 100 100 . Volleys Fired 13 | 3 1 9 Largest 3 | 1 2 3 Hottest 114 | 20 70 114 Shots Fired 25 | 3 2 20 Gun 16 | 3 2 11 Cannon 9 | . . 9 Launcher . | . . . Special . | . . . Kinetic 15 | 3 1 11 Thermal 10 | . 1 9 Explosive . | . . . Electromagnetic . | . . . Robot Hit Streak 20 | 3 . 20 Robot Miss Streak 2 | . . 2 Penetration Max . | . . . Secondary Targets . | . . . Shots Hit Robots 18 | 3 . 15 Core Hits 10 | 1 . 9 Critical Hits . | . . . Critical Kills . | . . . Critical Parts Destroyed . | . . . Melee Attacks . | . . . Impact . | . . . Slashing . | . . . Piercing . | . . . Sneak Attacks . | . . . Combat Hostiles . | . . . Follow-up Attacks . | . . . Damage Inflicted 246 | 36 . 210 Guns 125 | 36 . 89 Cannons 121 | . . 121 Explosions . | . . . Melee . | . . . Ramming . | . . . Kinetic 157 | 36 . 121 Thermal 89 | . . 89 Explosive . | . . . Electromagnetic . | . . . Impact . | . . . Slashing . | . . . Piercing . | . . . Highest Corruption . | . . . Average Corruption . | . . . Corruption Purged . | . . . Overload Shots . | . . . Overflow Damage . | . . . Projectiles . | . . . Explosions . | . . . Melee . | . . . Knockbacks 2 | . . 2 Impact . | . . . Kinetic 2 | . . 2 Secondary . | . . . Self-Inflicted Damage . | . . . Shots . | . . . Rammed . | . . . Targets Rammed . | . . . Kicked . | . . . Crushed . | . . . Highest Temperature 124 | . 15 124 Average Temperature 61 | . 10 64 Received Heat Transfer . | . . . Siege Activations . | . . . Robots Corrupted . | . . . Combat Hostiles . | . . . Parts Fried . | . . . Impact Corruptions . | . . . Robots Melted . | . . . Combat Hostiles . | . . . Parts Melted . | . . . Heat Transferred 259 | . . 259 Parts Sabotaged . | . . . Parts Stolen . | . . . Parts Stripped . | . . . Power Chain Reactions . | . . . Missiles Intercepted . | . . . Alert | -11 -10 -9 ------- Run | Scr Mat Mat Peak Influence 22 | 5 7 22 Initial 2 | . 2 . Average 5 | 1 5 9 Maximum Alert Level . | . . . Low Security (%) 100 | 100 100 100 Level 1 . | . . . Level 2 . | . . . Level 3 . | . . . Level 4 . | . . . Level 5 . | . . . High Security . | . . . Max Security . | . . . Squads Dispatched . | . . . Investigation . | . . . Extermination . | . . . Reinforcement . | . . . Assault . | . . . Garrison . | . . . Intercept . | . . . Construction Impeded . | . . . Haulers Reinforced . | . . . Stealth | -11 -10 -9 --------- Run | Scr Mat Mat Distress Signals 1 | . 1 . Communications Jammed . | . . . Distress Signals . | . . . Times Spotted . | . . . Peak Tracking Total . | . . . Tactical Retreats . | . . . Traps | -11 -10 -9 ------- Run | Scr Mat Mat Traps Triggered 1 | . 1 . Indirectly . | . . . Trap Hack Attempts . | . . . Triggered . | . . . Disarmed . | . . . Reprogrammed . | . . . Reused . | . . . Traps Extracted . | . . . Installed . | . . . Triggered . | . . . Machines | -11 -10 -9 ---------- Run | Scr Mat Mat Machines Disabled . | . . . Max in Single Turn . | . . . Machines Sabotaged . | . . . Garrisons Compromised . | . . . Overloaded Fab Kills . | . . . Fab Network Shutdowns . | . . . Hacking | -11 -10 -9 --------- Run | Scr Mat Mat Machines Accessed 7 | . 7 . Terminals 4 | . 4 . Fabricators . | . . . Repair Stations 1 | . 1 . Recycling Units 2 | . 2 . Scanalyzers . | . . . Garrison Access . | . . . Total Hacks 24 | . 24 . Successful 22 | . 22 . Failed 2 | . 2 . Catastrophic . | . . . Database Lockouts . | . . . Manual . | . . . Terminals 15 | . 15 . Fabricators . | . . . Repair Stations 4 | . 4 . Recycling Units 5 | . 5 . Scanalyzers . | . . . Garrison Access . | . . . Terminal Hacks 14 | . 14 . Record 2 | . 2 . Prototype ID Bank 1 | . 1 . Alert Level 1 | . 1 . Locate Traps 1 | . 1 . Dispatch Records 1 | . 1 . Maintenance Status 3 | . 3 . Transport Status 1 | . 1 . Registered Components 1 | . 1 . Zone Layout 3 | . 3 . Fabricator Hacks . | . . . Repair Station Hacks 4 | . 4 . Scan Component 2 | . 2 . Repair 2 | . 2 . Recycling Unit Hacks 4 | . 4 . Report Inventory 1 | . 1 . Retrieve Matter 2 | . 2 . Retrieve Components 1 | . 1 . Scanalyzer . | . . . Garrison Access Hacks . | . . . Unauthorized Hacks . | . . . Terminals . | . . . Fabricators . | . . . Repair Stations . | . . . Recycling Units . | . . . Scanalyzers . | . . . Garrison Access . | . . . Data Cores Recovered . | . . . Used . | . . . Hacking Detections 4 | . 4 . Full Trace Events . | . . . Feedback Events . | . . . Feedback Blocked . | . . . Robot Schematics Acquired . | . . . Robots Built . | . . . Matter . | . . . Time . | . . . Total Robot Build Rating . | . . . Part Schematics Acquired . | . . . Parts Built . | . . . Matter . | . . . Time . | . . . Total Part Build Rating . | . . . Parts Repaired 2 | . 2 . Time 52 | . 52 . Parts Recycled . | . . . Recycled Matter . | . . . Retrieved Matter . | . . . Retrieved Components 2 | . 2 . Parts Scanalyzed . | . . . Part Schematics Acquired . | . . . Parts Damaged . | . . . Bothacking | -11 -10 -9 ------------ Run | Scr Mat Mat Used RIF Installer . | . . . Robots Hacked . | . . . Non-combat . | . . . Combat . | . . . Robot Hacks Applied . | . . . Relay Couplers Released . | . . . Robots Rewired . | . . . Allies Hacked . | . . . Hacks Repelled . | . . . Allies | -11 -10 -9 -------- Run | Scr Mat Mat Total Allies . | . . . Largest Group . | . . . Highest-Rated Group . | . . . Highest-Rated Ally . | . . . Total Orders . | . . . Ally Attacks . | . . . Total Damage . | . . . Kills . | . . . Allies Corrupted . | . . . Allies Melted . | . . . Intel | -11 -10 -9 ------- Run | Scr Mat Mat Robot Analysis Total . | . . . Derelict Logs Recovered . | . . . Drone Launches . | . . . Drone Recoveries . | . . . Exploration | -11 -10 -9 ------------- Run | Scr Mat Mat Turns Passed 721 | 90 498 133 Spaces Moved 568 | 52 441 75 Core 5 | 4 1 . Treads 125 | 48 28 49 Legs . | . . . Wheels 438 | . 412 26 Hover . | . . . Flight . | . . . Fastest Speed 50 | 50 90 90 Average Speed 109 | 151 102 125 Slowest Speed 160 | 160 160 145 Overloaded Moves . | . . . Propulsion Burnouts . | . . . Robots Hopped . | . . . Cave-ins Triggered . | . . . Exploration Rate (%) 30 | 4 81 7 Regions Visited 2 Branch Regions . Pre-discovered Areas . | . . . Known Exits Taken 2 | 1 1 . Unknown Exits Taken . | . . . Scrap Searched . | . . . Spaces Dug . | . . . Terrain Destroyed . | . . . Melee . | . . . Projectile . | . . . AOE . | . . . Terrain Rammed . | . . . Walls Destroyed . | . . . Machines Disabled . | . . . Actions | -11 -10 -9 --------- Run | Scr Mat Mat Total 639 | 58 486 95 Wait 20 | . 20 . Move 566 | 51 440 75 Hop . | . . . Pick Up 14 | . 11 3 Fast Attach 6 | 4 2 . Attach 10 | . 9 1 Detach . | . . . Swap 4 | . 1 3 Drop 6 | . 2 4 Fire 13 | 3 1 9 Melee . | . . . Ram . | . . . Kick . | . . . Crush . | . . . Escape Stasis . | . . . Rewire . | . . . Trap . | . . . Miscellaneous . | . . . Route ------- -11/Scrapyard -10/Materials (discovered 3 exits: *Mat x2 / *Min) -9/Materials History --------- Turn | Location | Event 30 | -11/Scrapyard | Identified exit to Materials 30 | -11/Scrapyard | Discovered exit to Materials (range 16) 91 | -11/Scrapyard | Entered Materials 153 | -10/Materials | Upgraded with Power slot (x1) 153 | -10/Materials | Upgraded with Propulsion slot (x1) 153 | -10/Materials | Upgraded with Utility slot (x1) 153 | -10/Materials | Upgraded with Weapon slot (x1) 262 | -10/Materials | Repaired Com. Wheel 288 | -10/Materials | Repaired Lgt. Ion Engine 317 | -10/Materials | Build established: Hacker-Mutant 387 | -10/Materials | Identified exit to Mines 387 | -10/Materials | Discovered exit to Mines (range 14) 453 | -10/Materials | Identified exit to Materials 453 | -10/Materials | Discovered exit to Materials (range 15) 562 | -10/Materials | Discovered exit to Materials (range 11) 589 | -10/Materials | Entered another Materials area 591 | -9/Materials | Reached level 2 591 | -9/Materials | Reached level 3 685 | -9/Materials | Upgraded with Utility slot (x1) 685 | -9/Materials | Upgraded with Weapon slot (x1) 722 | -9/Materials | Self-destructed Last Messages --------------- 00626_ Acquired Flak Cannon. 00628_ R-06 Scavenger collects Wheel. 00628_ R-06 Scavenger knocked back. 00634_ R-06 Scavenger destroyed. 00637_ Extracted 48 matter. 00661_ A-02 Transporter destroyed. 00665_ Acquired 18 matter. 00665_ K-01 Serf collects debris. 00666_ K-01 Serf destroyed. 00667_ Acquired 1 matter. 00671_ Acquired 5 matter. 00685_ Upgraded: Utility Slot (+1) 00685_ Upgraded: Weapon Slot (+1) 00685_ Upgraded: Inventory Capacity (+1) 00685_ Upgraded: Sensor Range (+4) 00698_ Acquired 3 matter. 00710_ R-06 Scavenger destroyed. 00720_ Upgraded: Core Integrity (+50) 00720_ Upgraded: Energy Storage (+50) 00720_ Upgraded: Sensor Range (+2) Map ----- +----------------------------------------------------+ | ?????????????????????????????????????????????????? | | ?????????????????????????????????????????????????? | | ?????????????????????????????????????????????????? | | ?????????????????????????????????????????????????? | | ?????????????????????????????????????????????????? | | ?????????????????????????????????????????????????? | | ?????????????????????????????????????????????????? | | ?????????????????????????????????????????????????? | | ?????????????????????????????????????????????????? | | ????????????????? ?????????????????????????????? | | ????????????????# ?????????????????????????????? | | ????????????????# #????????????????????????????? | | ????????????????# #????????????????????????????? | | ????????????????# #????????????????????????????? | | ????????????????+ #????????????????????????????? | | ????????????????# #????????????????????????????? | | ????????????????# #???????#############????????? | | ????????????????# #???????# #????????? | | ????????????????# %#???????# #????????? | | ????????????????# #???????# #????????? | | ????????????????# ######### """ """ #????????? | | ????????????????+ ##!!]]= # """"""""" #????????? | | ????????????????# ##!!] ==# """"" #????????? | | ????????????????# ## ! *# % #????????? | | ######+##########[ ## ######+######????????? | | = [ %=@ #??????????? | | [[ = #??????????? | | = = #??????????? | | ######+###########+###############+####??????????? | | ???????????????? ?????????????? ????????????? | | ?????????????? "????????????? ??????????? | | ????????????? ????????????? " """"" ????????? | | ???????????????????????????# """"""""" #???????? | | ???????????????????????????# """ """ #???????? | | ???????????????????????????# ????????? | | ???????????????????????????#############?#???????? | | | | | | | | | | | | | | | | | | | | | | | | | | | | | +----------------------------------------------------+ Best States ------------- Heat Dissipation 31 Energy Generation 20 Energy Capacity 325 Matter Stores 350 Matter Capacity 350 Sight Range 17 Robot Scan Range 8 Terrain Scan Density 110 Armor Coverage 150 Resistance: KI 40 Resistance: TH 40 Resistance: EX 40 Resistance: EM 35 Resistance: I 35 Resistance: S 35 Resistance: P 35 Evasion (%) 42 Recoil Reduction 2 Offensive Hacking 25 Defensive Hacking 5 Item Schematics ----------------- None Robot Schematics ------------------ None Fabricated ------------ Nothing Alien Tech Used ----------------- None Achievements -------------- None Challenges ------------ None RPGLIKE | -11 -10 -9 --------- Run | Scr Mat Mat Levels Raised 2 | . . 2 XP Earned 9337 | 6000 . 3337 XP Spent 8980 | . 5985 2995 Upgrades 35 | . 27 8 Power Slot 1 | . 1 . Propulsion Slot 1 | . 1 . Utility Slot 2 | . 1 1 Weapon Slot 2 | . 1 1 Core Integrity 3 | . 2 1 Heat Dissipation 1 | . 1 . Energy Generation 1 | . 1 . Energy Storage 2 | . 1 1 Matter Storage 1 | . 1 . Mass Support 1 | . 1 . Inventory Capacity 3 | . 2 1 Sight Range 1 | . 1 . Sensor Range 5 | . 2 3 Terrain Scan Density 1 | . 1 . Ranged Accuracy 1 | . 1 . Melee Accuracy 1 | . 1 . Hack Attack % 1 | . 1 . Hack Defense % 1 | . 1 . KI Resistance % 1 | . 1 . TH Resistance % 1 | . 1 . EX Resistance % 1 | . 1 . KI Damage % 1 | . 1 . TH Damage % 1 | . 1 . EX Damage % 1 | . 1 . Protomatter Created . | . . . Protomatter Decayed 36 | . 36 . Game ------ Seed SmartbombScanCutter Manual? 0 Play Time 00:15:21 Cumulative 9.5 hours Start 2020.12.09 @ 10:32:28 End 2020.12.09 @ 10:45:08 Sessions 1 Manual Loads 0 Difficulty Explorer Special Mode Winter2019/RPGLIKE Game No. 29 Rogue 5 Adventurer 0 Explorer 24 Win Type - Total 0 Types 0/0/0/0/0/0/0/0/0 Lore% 13 Gallery% 26 Achievement% 9 Wizard Run 0 Options --------- ASCII 0 Keyboard 0 Movement Numpad Keybinds 0 Fullscreen 0 Font 16/SmallcapsGlow Map View 76x50 Tactical HUD 1 Map Filters NONE Filters NONE Steam 1 RUN: b25c6173-f5f3-4634-be1e-eb8b8d95a2a4